[Event "44th Chess Olympiad Open 2022"]
[Site "Chennai"]
[Date "2022.07.30"]
[Round "2.6"]
[White "Paragua, Mark"]
[Black "Mamedov, Rauf"]
[Result "1/2-1/2"]
[WhiteElo "2461"]
[BlackElo "2656"]
[Annotator "TA"]
[PlyCount "75"]
[EventDate "2022.??.??"]
[TimeControl "60"]

{[%evp 14,75,20,19,24,12,20,4,22,22,31,31,27,24,27,22,18,18,26,21,21,20,30,0,0,
12,27,27,33,21,24,13,15,22,44,31,30,29,54,54,54,54,54,54,54,0,29,0,54,54,51,0,
0,0,0,0,0,0,0,0,0,0,0,0]} 1. e4 {[%emt 0:00:04]} c5 {[%emt 0:00:11]} 2. Nf3 {
[%emt 0:00:10]} Nc6 {[%emt 0:00:09]} 3. Bb5 {[%emt 0:00:29]} g6 {[%emt 0:00:09]
} 4. O-O {[%emt 0:00:15]} Bg7 {[%emt 0:00:06]} 5. Re1 {[%emt 0:00:11]} e5 {
[%emt 0:00:18]} 6. Bxc6 {[%emt 0:00:46]} dxc6 {[%emt 0:00:04]} 7. d3 {[%emt 0:
00:00]} Qe7 {[%emt 0:01:34]} 8. a3 {[%emt 0:00:09][%cal Ya2a3,Ya3a4,Ya4a5] 8.
a4 is a critical line.} Nf6 {[%emt 0:02:01][%cal Yg8f6,Yf6d7,Yd7c5] B31:
Sicilian: 2...Nc6 3 Bb5 g6.} 9. b4 {[%emt 0:00:10]} O-O {[%emt 0:02:03]} 10.
bxc5 {[%emt 0:00:19]} Nd7 {[%emt 0:00:59]} 11. a4 {[%emt 0:00:00]} Nxc5 {
[%emt 0:04:27]} 12. Ba3 {[%emt 0:03:55]} b6 {[%emt 0:01:24]} 13. Nbd2 {[%emt 0:
01:50]} Be6 {[%emt 0:03:16] [#]} 14. a5 $146 {[%emt 0:08:18]} ({Predecessor:} 
14. Nb3 Bxb3 15. cxb3 Rfd8 16. Rc1 Bf8 17. Bxc5 bxc5 18. Rc3 Rab8 19. Qc2 f6
20. Nd2 {1-0 (49) Glek,I (2475)-Gutenev,A (2463) Chess.com INT 2020}) 14...
Rfb8 {[%emt 0:10:30]} 15. Qe2 {[%emt 0:03:49]} Qc7 {[%emt 0:07:01]} (15... bxa5
$2 16. c3 $18) 16. Ng5 {[%emt 0:07:37]} h6 {[%emt 0:11:59]} 17. Bxc5 {[%emt 0:
17:11]} hxg5 {[%emt 0:00:11]} 18. axb6 {[%emt 0:00:23]} axb6 {[%emt 0:00:00]}
19. Be3 {[%emt 0:00:10]} Qd8 {[%emt 0:11:36]} 20. h3 {[%emt 0:07:20]} f6 21.
Reb1 {[%emt 0:04:10]} (21. Nf3 $5 {[%cal Rd3d4]}) 21... b5 22. Nb3 {[%emt 0:01:
32]} Bxb3 {[%emt 0:23:11]} 23. cxb3 {[%emt 0:00:30]} Qd7 {[%emt 0:00:00]} 24.
Qc2 {[%emt 0:02:43]} Bf8 {[%emt 0:03:14]} 25. Rc1 {[%emt 0:02:43][%cal Yb1c1,
Yc1a1,Ya1a7]} Rxa1 {[%emt 0:04:56]} 26. Rxa1 {[%emt 0:00:00]} Rc8 {[%emt 0:00:
08]} 27. Ra7 {[%emt 0:02:08]} Rc7 {[%emt 0:00:05]} 28. Ra8 {[%emt 0:02:00]} Rc8
{[%emt 0:00:30]} 29. Ra7 {[%emt 0:00:30]} Rc7 {[%emt 0:00:00]} 30. Ra8 {
[%emt 0:00:30]} Rc8 {[%emt 0:00:30]} 31. Ra6 {[%emt 0:00:30]} Bb4 {[%emt 0:00:
30]} 32. Bc5 {[%emt 0:00:30]} ({Better is} 32. Ra7 $14 Rc7 33. Ra8+ Rc8 34. Ra6
) 32... Bxc5 $11 {[%emt 0:08:34] The position is equal.} 33. Qxc5 {[%emt 0:11:
40]} Qxd3 {[%emt 0:02:22] KQR-KQR} 34. Ra7 {[%emt 0:10:28]} Qb1+ {[%emt 0:01:
55]} (34... Qxe4 {is a self mate.} 35. Qe7 Qb1+ 36. Kh2) 35. Kh2 {[%emt 0:00:
06] [#] Threatening mate with Qe7.} Qxe4 {[%emt 0:00:04]} 36. Qe7 {[%emt 0:00:
34][%csl Ga7][%cal Re7g7]} Qf4+ {[%emt 0:00:04]} 37. Kg1 {[%emt 0:00:00][%csl
Ga7][%cal Re7g7]} Qc1+ {[%emt 0:00:02]} 38. Kh2 {[%emt 0:00:07] Weighted Error
Value: White=0.09 (flawless) /Black=0.03 (flawless)} 1/2-1/2

[Event "44th Chess Olympiad Open 2022"]
[Site "Chennai"]
[Date "2022.07.30"]
[Round "2.6"]
[White "Gomez, John Paul"]
[Black "Durarbayli, Vasif"]
[Result "1/2-1/2"]
[WhiteElo "2451"]
[BlackElo "2638"]
[Annotator "TA"]
[PlyCount "62"]
[EventDate "2022.??.??"]
[TimeControl "60"]

{[%evp 19,62,15,28,29,30,0,0,0,10,9,11,0,15,8,11,0,18,18,18,20,26,7,8,3,7,0,8,
14,17,20,31,0,0,0,14,14,13,0,0,6,8,0,0,0,0]} 1. d4 {[%emt 1:22:30]} d5 {
[%emt 0:00:33]} 2. c4 {[%emt 0:00:11]} c6 {[%emt 0:00:20]} 3. Nf3 {[%emt 0:00:
00]} Nf6 {[%emt 0:00:29]} 4. cxd5 {[%emt 0:02:26]} cxd5 {[%emt 0:02:24]} 5. Nc3
{[%emt 0:00:07]} Nc6 {[%emt 0:00:44]} 6. Bf4 {[%emt 0:00:10]} a6 {[%emt 0:00:
00]} 7. e3 {[%emt 0:00:24]} Bg4 {[%emt 0:01:07]} 8. h3 {[%emt 0:01:26]} Bxf3 {
[%emt 0:01:39]} 9. Qxf3 {[%emt 0:00:08]} e6 {[%emt 0:01:37]} 10. Bd3 {[%emt 0:
00:00]} Be7 {[%emt 0:01:41]} 11. O-O {[%emt 0:09:49] D13: Slav Defence:
Exchange variation without ...Bf5.} O-O {[%emt 0:01:21]} 12. Bg5 {[%emt 0:00:
00]} Nd7 {[%emt 0:06:15][%cal Yf6d7,Yd7b6,Yb6c4]} 13. Bxe7 {[%emt 0:00:00]}
Qxe7 {[%emt 0:00:40]} 14. Rac1 {[%emt 0:00:37]} Rac8 {[%emt 0:04:11] [#]} 15.
Bb1 $146 {[%emt 0:08:40]} ({Predecessor:} 15. Qe2 f5 16. f4 Na5 17. b3 Qb4 18.
Qd2 Rc6 19. Nb1 Qb6 20. Rxc6 Nxc6 21. Be2 {0-1 (46) Hunt,M (2054) -Snape,I 
(2282) England 2016}) 15... f5 {[%emt 0:07:01]} 16. Qd1 {[%emt 0:00:00]} Qb4 {
[%emt 0:06:17]} 17. Rc2 {[%emt 0:05:22]} Nb6 {[%emt 0:05:43]} 18. Ne2 {[%emt 0:
03:55]} Nc4 {[%emt 0:00:55]} 19. Nf4 {[%emt 0:00:55]} Qe7 {[%emt 0:00:00]} ({
Don't take} 19... Nxb2 20. Qf3 Rce8 21. Nxe6 Rxe6 22. Qxd5 $16) 20. Nd3 {
[%emt 0:04:47]} Nb4 {[%emt 0:02:33]} 21. Nxb4 {[%emt 0:00:31]} Qxb4 {[%emt 0:
00:00]} 22. Qe2 {[%emt 0:00:49]} a5 {[%emt 0:04:54]} 23. Rfc1 {[%emt 0:03:17]}
a4 {[%emt 0:00:42]} 24. Rc3 {[%emt 0:06:27][%cal Yc2c3,Yc3b3,Yb3b1]} Rc6 {
[%emt 0:02:02]} 25. b3 {[%emt 0:05:54]} (25. Bd3 $5 {[%cal Rd3c4]}) 25... axb3
{[%emt 0:02:00] The position is equal.} 26. Rxb3 {[%emt 0:00:31]} Qe7 {[%emt 0:
01:34]} 27. Bd3 {[%emt 0:00:58][%cal Rd3c4]} Rfc8 {[%emt 0:00:17]} 28. a4 {
[%emt 0:05:07]} Nd6 {[%emt 0:02:25]} 29. Rxc6 {[%emt 0:00:58]} Rxc6 {[%emt 0:
00:02]} 30. Rb1 {[%emt 0:04:19]} Qc7 {[%emt 0:01:26]} 31. Qb2 {[%emt 0:00:00]}
Kf7 {[%emt 0:02:21] An even fight not without its subleties. Weighted Error
Value: White=0.05 (flawless) /Black=0.04 (flawless)} 1/2-1/2

[Event "44th Chess Olympiad Open 2022"]
[Site "Chennai"]
[Date "2022.07.30"]
[Round "2.7"]
[White "Van Foreest, Jorden"]
[Black "Ferreira, Jorge Viterbo"]
[Result "1/2-1/2"]
[WhiteElo "2678"]
[BlackElo "2499"]
[Annotator "TA"]
[PlyCount "89"]
[EventDate "2022.??.??"]
[TimeControl "60"]

{[%evp 9,89,6,13,-10,13,0,10,0,0,-3,0,0,0,0,-5,-5,0,0,0,0,1,3,8,4,4,4,6,8,7,0,
9,-80,-89,-42,0,0,0,0,0,0,0,0,0,0,0,0,0,0,0,0,59,46,43,68,43,52,53,42,53,39,45,
45,59,53,93,90,74,8,8,8,8,8,8,8,8,8,8,8,8,0,8,0]} 1. Nf3 {[%emt 0:00:03]} d5 {
[%emt 0:00:10]} 2. g3 {[%emt 0:00:08]} Nf6 {[%emt 0:00:16]} 3. Bg2 {[%emt 0:00:
00]} e6 {[%emt 0:00:09]} 4. O-O {[%emt 0:00:26]} Be7 {[%emt 0:00:10]} 5. d4 {
[%emt 0:00:09]} O-O {[%emt 0:00:20]} 6. Bf4 {[%emt 0:01:23] D02:1 d4 d5 2 Nf3
sidelines, including 2...Nf6 3 g3 and 2...Nf6 3 Bf4.} b6 {[%emt 0:01:51]} 7. c4
{[%emt 0:03:45]} Bb7 {[%emt 0:06:43]} 8. Ne5 {[%emt 0:03:05]} Qc8 {[%emt 0:00:
00] was the old line (8...Nbd7).} 9. Qc2 {[%emt 0:19:49]} dxc4 {[%emt 0:03:23]}
10. Qxc4 {[%emt 0:01:18]} Bxg2 {[%emt 0:03:05]} 11. Kxg2 {[%emt 0:00:04]} Qb7+
{[%emt 0:04:34] [#]} 12. f3 $146 {[%emt 0:06:49]} ({Predecessor:} 12. Kg1 c5
13. dxc5 Rc8 14. Nc3 Rxc5 15. Qd3 g5 16. b4 Rxc3 17. Qxc3 gxf4 18. Rac1 {
½-½ (52) Kempinski,R (2600)-Yemelin,V (2558) Czech Republic 2017}) 12... Rc8
{[%emt 0:04:46]} 13. Nc3 {[%emt 0:03:11]} c5 {[%emt 0:01:19]} 14. Rfd1 {
[%emt 0:03:28]} cxd4 {[%emt 0:04:17]} 15. Qxd4 {[%emt 0:00:02]} Nc6 {[%emt 0:
00:00]} 16. Nxc6 {[%emt 0:01:07]} Rxc6 {[%emt 0:00:44]} 17. e4 {[%emt 0:04:21]}
b5 {[%emt 0:18:04]} 18. Rac1 {[%emt 0:01:17]} h6 {[%emt 0:04:56]} 19. Ne2 {
[%emt 0:05:23]} Rd8 {[%emt 0:02:23]} 20. Qe3 {[%emt 0:00:56]} (20. Rxc6 $11
Qxc6 21. Qc3 Qxc3 22. Rxd8+ (22. Nxc3 Rxd1 23. Nxd1 Nd7 $11) 22... Bxd8 23.
Nxc3) 20... Rxd1 $17 {[%emt 0:05:18]} 21. Rxd1 {[%emt 0:00:09]} Rc2 {[%emt 0:
00:00]} (21... g5 $5 {[%cal Rg5f4]} 22. Be5 Nd7 $11) 22. Rd2 {[%emt 0:01:45]}
Rxd2 {[%emt 0:03:37]} 23. Qxd2 {[%emt 0:00:05]} Nd7 {[%emt 0:02:49]} 24. Bd6 {
[%emt 0:02:05]} Bf6 {[%emt 0:01:24]} 25. b3 {[%emt 0:02:18]} Qc6 {[%emt 0:00:
00]} 26. Bb4 {[%emt 0:01:14]} Ne5 {[%emt 0:02:37]} 27. h4 {[%emt 0:02:13]} g5 {
[%emt 0:02:54] [#] aiming for ...g4.} 28. hxg5 {[%emt 0:10:48]} hxg5 {[%emt 0:
00:00] White must now prevent ...g4.} 29. Bc3 {[%emt 0:01:02]} Qd7 {[%emt 0:00:
00]} (29... g4 $11 30. Bxe5 gxf3+ 31. Kxf3 Bxe5) 30. Qxd7 $1 $14 {[%emt 0:00:
00]} Nxd7 {[%emt 0:00:07]} 31. Bxf6 {[%emt 0:00:03]} Nxf6 {[%emt 0:00:09]
Endgame KN-KN} 32. Nd4 {[%emt 0:00:14]} a6 {[%emt 0:00:25]} 33. Nc6 {[%emt 0:
00:06]} Nd7 {[%emt 0:05:37]} 34. e5 {[%emt 0:01:54]} f6 {[%emt 0:01:02]} 35.
exf6 {[%emt 0:02:15]} Kf7 {[%emt 0:00:04]} 36. Kf2 {[%emt 0:00:14]} Kxf6 {
[%emt 0:01:06]} 37. Ke3 {[%emt 0:00:06]} e5 {[%emt 0:04:24] [#]} 38. Ke4 {
[%emt 0:01:43]} ({Better is} 38. Nb4 $1 $16 {[%cal Rb4a6]}) 38... Ke6 $11 {
[%emt 0:00:25] The position is equal.} 39. Nd8+ {[%emt 0:00:08]} Ke7 {[%emt 0:
00:00]} 40. Nb7 {[%emt 0:01:53] Strongly threatening Kd5.} Ke6 {[%emt 0:00:10]}
41. b4 {[%emt 0:30:06]} Nf6+ {[%emt 0:34:32]} 42. Kd3 {[%emt 0:00:05]} Nd7 {
[%emt 0:00:18]} 43. Nd8+ {[%emt 0:04:04]} ({Not} 43. Nc5+ $2 Nxc5+ 44. Ke3 (44.
bxc5 $2 Kd5 $19) 44... Kd5 $19) 43... Ke7 {[%emt 0:00:31]} 44. Nb7 {[%emt 0:00:
00]} Ke6 {[%emt 0:00:05]} 45. Nd8+ {[%emt 0:00:05] Weighted Error Value:
White=0.09 (flawless) /Black=0.05 (flawless)} (45. Nc5+ Nxc5+ 46. bxc5 Kd5 $19)
1/2-1/2

[Event "44th Chess Olympiad Open 2022"]
[Site "Chennai"]
[Date "2022.07.30"]
[Round "2.7"]
[White "Bok, Benjamin"]
[Black "Veiga, Jose Francisco R P "]
[Result "1/2-1/2"]
[WhiteElo "2616"]
[BlackElo "2378"]
[Annotator "RC"]
[PlyCount "58"]
[EventDate "2022.??.??"]
[TimeControl "60"]

1. Nf3 {[%emt 0:00:04]} Nf6 {[%emt 0:00:20]} 2. c4 {[%emt 0:00:05]} g6 {
[%emt 0:00:41]} 3. Nc3 {[%emt 0:00:06]} Bg7 {[%emt 0:00:45]} 4. e4 {[%emt 0:00:
00]} d6 {[%emt 0:00:18]} 5. d4 {[%emt 0:00:06]} O-O {[%emt 0:00:36]} 6. Be2 {
[%emt 0:00:03]} Bg4 {[%emt 0:02:53]} 7. Be3 {[%emt 0:00:06]} Nfd7 {[%emt 0:00:
00]} 8. Rc1 {[%emt 0:14:46]} c5 {[%emt 0:02:02]} 9. d5 {[%emt 0:00:24]} Na6 {
[%emt 0:00:19]} 10. O-O {[%emt 0:04:39]} Nc7 {[%emt 0:00:17]} 11. h3 {[%emt 0:
00:00]} Bxf3 {[%emt 0:00:08]} 12. Bxf3 {[%emt 0:00:03]} a6 {[%emt 0:01:40]} 13.
a4 {[%emt 0:03:53]} Rb8 {[%emt 0:01:10]} 14. Be2 {[%emt 0:01:25]} e6 {[%emt 0:
00:00]} 15. Qd2 {[%emt 0:21:42]} exd5 {[%emt 0:01:40]} 16. exd5 {[%emt 0:03:23]
} f5 {[%emt 0:02:27]} 17. Rfe1 {[%emt 0:00:47]} Qf6 {[%emt 0:04:57]} 18. Bf4 {
[%emt 0:06:36]} a5 {[%emt 0:20:50]} 19. Bf1 {[%emt 0:02:08]} Rbe8 {[%emt 0:00:
00]} 20. Bg5 {[%emt 0:09:56]} Qf7 {[%emt 0:00:48]} 21. Rxe8 {[%emt 0:00:10]}
Rxe8 {[%emt 0:01:22]} 22. Re1 {[%emt 0:00:10]} Rxe1 {[%emt 0:05:51]} 23. Qxe1 {
[%emt 0:00:05]} Bf6 {[%emt 0:00:14]} 24. Bd2 {[%emt 0:01:22]} b6 {[%emt 0:00:
00]} 25. g3 {[%emt 0:07:10]} Be5 {[%emt 0:07:56]} 26. f4 {[%emt 0:01:27]} Bd4+
{[%emt 0:02:51]} 27. Kh2 {[%emt 0:00:49]} Qe8 {[%emt 0:01:44]} 28. Qe4 {
[%emt 0:00:36]} Qe7 29. Qxe7 {[%emt 0:00:30]} Ne8 {[%emt 0:00:35]} 1/2-1/2

[Event "44th Chess Olympiad Open 2022"]
[Site "Chennai"]
[Date "2022.07.30"]
[Round "2.7"]
[White "Sousa, Andre Ventura"]
[Black "L'Ami, Erwin"]
[Result "1/2-1/2"]
[WhiteElo "2420"]
[BlackElo "2634"]
[Annotator "TA"]
[PlyCount "93"]
[EventDate "2022.??.??"]
[TimeControl "60"]

{[%evp 9,93,12,14,13,20,17,21,12,33,0,0,0,0,-3,0,0,0,0,6,0,12,12,10,11,18,12,
25,0,0,0,0,-9,-7,-7,-19,-9,0,-11,0,-22,30,8,26,9,45,39,35,54,64,65,62,69,65,61,
62,63,68,44,43,47,59,51,51,51,70,70,70,70,70,70,73,28,70,61,108,93,93,101,112,
52,36,0,0,0,0,0]} 1. d4 {[%emt 0:11:13]} d5 {[%emt 0:00:43]} 2. Nf3 {[%emt 0:
00:00]} Nf6 {[%emt 0:00:28]} 3. Bf4 {[%emt 0:00:14]} e6 {[%emt 0:01:42]} 4. e3
{[%emt 0:03:24]} Bd6 {[%emt 0:00:24]} 5. Bxd6 {[%emt 0:01:44]} cxd6 {[%emt 0:
00:00]} 6. c4 {[%emt 0:01:19] D02:1 d4 d5 2 Nf3 sidelines, including 2...Nf6 3
g3 and 2...Nf6 3 Bf4.} Qb6 {[%emt 0:05:58]} 7. Qc2 {[%emt 0:09:20] [#]} Bd7
$146 {[%emt 0:05:22]} ({Predecessor:} 7... Nc6 8. Nc3 Bd7 9. a3 dxc4 10. Bxc4
O-O 11. O-O Rac8 12. Qb3 Qxb3 13. Bxb3 Na5 {1-0 (62) Malelak,J-Radytia,A ICCF
email 2017}) 8. Nc3 {[%emt 0:03:04]} Na6 {[%emt 0:05:32]} 9. cxd5 {[%emt 0:00:
00]} Nb4 {[%emt 0:00:52]} 10. Qd2 {[%emt 0:07:12]} Nbxd5 {[%emt 0:02:06]} 11.
Bd3 {[%emt 0:03:21]} Nxc3 {[%emt 0:04:19]} 12. bxc3 {[%emt 0:02:30]} Bc6 {
[%emt 0:06:53]} 13. O-O {[%emt 0:07:27]} O-O {[%emt 0:05:16]} 14. Qe2 {[%emt 0:
00:00]} Qa5 {[%emt 0:08:33]} 15. Rfc1 {[%emt 0:01:45]} Rac8 {[%emt 0:02:25]}
16. Nd2 {[%emt 0:04:37]} Rfe8 {[%emt 0:02:43]} 17. a4 {[%emt 0:06:20]} Qg5 {
[%emt 0:06:05][%csl Gc6][%cal Rg5g2] [#]} 18. f4 {[%emt 0:06:06]} Qh6 {[%emt 0:
00:00]} 19. Nc4 {[%emt 0:03:47]} Rcd8 {[%emt 0:01:18]} 20. Rf1 {[%emt 0:02:06]}
Be4 {[%emt 0:01:49]} 21. Nd2 {[%emt 0:01:02]} Bxd3 {[%emt 0:02:52]} 22. Qxd3 {
[%emt 0:00:05]} d5 {[%emt 0:00:36]} 23. Rfb1 {[%emt 0:02:25]} Re7 {[%emt 0:00:
00]} ({Don't take} 23... Ng4 24. h3 Nf6 25. Rxb7 $16) 24. Rb3 {[%emt 0:00:25]}
Qg6 {[%emt 0:02:07]} (24... Rc7 $142) 25. Qxg6 $11 {[%emt 0:00:25]} hxg6 {
[%emt 0:00:08]} 26. Rab1 {[%emt 0:01:00]} Rdd7 {[%emt 0:02:43]} 27. Kf2 {
[%emt 0:00:50]} Rc7 {[%emt 0:01:46]} 28. Ke2 {[%emt 0:02:41]} Ne8 {[%emt 0:00:
00]} 29. e4 {[%emt 0:01:04]} Nd6 {[%emt 0:02:07]} 30. e5 {[%emt 0:00:32]} Nc8 {
[%emt 0:02:13]} 31. Kd3 {[%emt 0:01:05]} Red7 {[%emt 0:01:14]} 32. Rb5 {
[%emt 0:03:02]} f6 {[%emt 0:02:13]} 33. Nb3 {[%emt 0:02:46] Strongly
threatening Nc5.} b6 {[%emt 0:00:47] Prevents Nc5.} 34. a5 {[%emt 0:01:26]} Kf7
{[%emt 0:04:39]} 35. Nd2 {[%emt 0:00:43]} Rc6 {[%emt 0:01:34]} 36. axb6 {
[%emt 0:00:56]} Nxb6 {[%emt 0:00:10]} 37. Rc5 {[%emt 0:00:45]} Rdc7 {[%emt 0:
00:00]} 38. Rxc6 {[%emt 0:00:43]} Rxc6 $14 {[%emt 0:00:07] Endgame KRN-KRN} 39.
Ra1 {[%emt 0:00:12]} Rc7 {[%emt 0:00:09]} 40. h4 {[%emt 0:02:34] Prevents g5.}
Kg8 {[%emt 0:04:20]} 41. Nb3 {[%emt 0:02:04]} Kh7 {[%emt 0:03:49]} (41... Nc4
$14 {might be stronger.}) 42. Nc5 $16 {[%emt 0:01:09]} Re7 {[%emt 0:00:10]} 43.
g4 {[%emt 0:04:55]} Kh6 {[%emt 0:05:09]} 44. exf6 {[%emt 0:00:00] White is
more active.} ({White should try} 44. Ke3 $16) 44... gxf6 $14 {[%emt 0:00:07]}
45. Re1 {[%emt 0:03:41]} f5 $1 {[%emt 0:12:27]} 46. gxf5 {[%emt 0:06:26]} (46.
Nxe6 $2 fxg4 47. Re5 g3 $19) 46... gxf5 {[%emt 0:00:07]} 47. Rxe6+ {[%emt 0:01:
15] Weighted Error Value: White=0.07 (flawless) /Black=0.10 (very precise)}
1/2-1/2

[Event "44th Chess Olympiad Open 2022"]
[Site "Chennai"]
[Date "2022.07.30"]
[Round "2.7"]
[White "Santos, Jose Guilherme B Li"]
[Black "Warmerdam, Max"]
[Result "0-1"]
[WhiteElo "2361"]
[BlackElo "2610"]
[Annotator "TA"]
[PlyCount "92"]
[EventDate "2022.??.??"]
[TimeControl "60"]

{[%evp 21,92,0,0,0,0,-22,0,0,0,-19,-16,-22,0,0,0,-6,-20,-83,-28,-48,-35,-24,
-37,-36,-31,-44,-42,-42,-33,-43,-13,-19,-12,-14,-4,-11,-5,-8,0,-16,-5,-7,-5,-9,
0,0,0,0,0,0,0,-20,-20,-108,-108,-108,-108,-121,-121,-157,-150,-183,-187,-177,
-127,-216,-212,-227,-202,-352,-347,-326,-318]} 1. d4 {[%emt 0:00:14]} Nf6 {
[%emt 0:00:20]} 2. c4 {[%emt 0:01:52]} e6 {[%emt 0:00:06]} 3. Nf3 {[%emt 0:00:
00]} d5 {[%emt 0:00:06]} 4. Nc3 {[%emt 0:00:14]} Nbd7 {[%emt 0:00:19][%cal
Yb8d7,Yd7b6,Yb6d5]} 5. Bf4 {[%emt 0:07:04]} Bb4 {[%emt 0:00:19]} 6. e3 {
[%emt 0:02:47]} c5 {[%emt 0:09:21]} 7. Bd3 {[%emt 0:05:42]} cxd4 {[%emt 0:00:
00]} 8. exd4 {[%emt 0:03:53]} dxc4 {[%emt 0:03:44]} 9. Bxc4 {[%emt 0:00:20]}
Nb6 {[%emt 0:02:42]} 10. Bd3 {[%emt 0:02:28]} Nbd5 {[%emt 0:09:12]} 11. Bd2 {
[%emt 0:03:16]} O-O {[%emt 0:00:30]} 12. O-O {[%emt 0:00:07] B22: Sicilian: 2
c3.} b6 {[%emt 0:08:17]} 13. a3 {[%emt 0:04:10] [#] Strongly threatening Nxd5.}
Be7 {[%emt 0:03:38]} 14. Re1 {[%emt 0:00:56] The position is equal.} Bb7 {
[%emt 0:00:26]} 15. Ne4 {[%emt 0:00:44]} Rc8 {[%emt 0:21:14]} 16. Ne5 {[%emt 0:
00:00] [#]} Rc7 $146 {[%emt 0:02:25]} ({Predecessor:} 16... a6 17. Qf3 b5 18.
Rad1 Ba8 19. Qh3 Nxe4 20. Bxe4 f5 21. Bb1 Bg5 22. Bxg5 Qxg5 23. Nf3 Qf6 24. Qg3
Rfe8 25. Qd6 Rcd8 26. Qg3 Nb6 27. Ba2 Bd5 28. Bxd5 {½-½ (26) Adams,P (2097)
-Coates,K (2194) England 2012}) 17. Ng5 {[%emt 0:26:30]} Bd6 {[%emt 0:03:42]}
18. Qb1 {[%emt 0:00:46][%cal Rd3h7]} g6 {[%emt 0:02:01]} 19. Ne4 {[%emt 0:00:
00]} (19. Qd1 $11) 19... Nxe4 $17 {[%emt 0:00:50]} 20. Bxe4 {[%emt 0:00:46]}
Qa8 {[%emt 0:05:34]} (20... f6 $5 {[%cal Rf6e5]} 21. Nf3 f5 22. Bxd5 Bxd5 $15)
21. Qd3 {[%emt 0:03:14]} Nf6 {[%emt 0:01:52]} 22. Bxb7 {[%emt 0:03:22]} Qxb7 {
[%emt 0:00:04]} 23. Qf3 {[%emt 0:10:03]} Qxf3 {[%emt 0:00:34]} 24. Nxf3 {
[%emt 0:00:09]} Nd5 {[%emt 0:09:20]} 25. Rac1 {[%emt 0:03:34]} b5 {[%emt 0:00:
00]} 26. Ba5 {[%emt 0:03:29]} Rcc8 {[%emt 0:00:39]} 27. g3 {[%emt 0:00:18]
Against Nf4} Kg7 {[%emt 0:03:42]} 28. Kf1 {[%emt 0:00:14]} b4 {[%emt 0:04:50]}
(28... Kf6 {with more complications.} 29. h4 h6 30. Kg2 g5) 29. axb4 {[%emt 0:
00:00]} Nxb4 {[%emt 0:01:01]} 30. Ke2 {[%emt 0:01:33] Inhibits Nd3.} Rb8 {
[%emt 0:00:55]} 31. Bc7 {[%emt 0:00:49]} Bxc7 {[%emt 0:00:05]} 32. Rxc7 {
[%emt 0:00:06]} a5 {[%emt 0:00:25]} 33. Kf1 {[%emt 0:01:09]} Rfc8 {[%emt 0:00:
00]} 34. Rd7 {[%emt 0:04:13] Black must now prevent Ng5.} Rd8 {[%emt 0:00:25]}
35. Rxd8 {[%emt 0:00:05]} Rxd8 $11 {[%emt 0:00:03] Endgame KRN-KRN} 36. Ra1 {
[%emt 0:01:07]} Nc6 {[%emt 0:00:35]} 37. Ke2 {[%emt 0:00:19]} (37. h4 $11 {
remains equal.}) 37... Rb8 $17 {[%emt 0:00:11]} ({Of course not} 37... Nxd4+ $6
38. Nxd4 Rxd4 39. Rxa5 $11) 38. Ra2 {[%emt 0:00:06]} Rb3 {[%emt 0:00:00]} 39.
h3 {[%emt 0:00:50]} Kf6 {[%emt 0:00:30] Black is more active.} 40. g4 {[%emt 0:
00:04]} g5 {[%emt 0:01:30]} 41. Ra3 {[%emt 0:31:20]} Rxb2+ {[%emt 0:00:00]} 42.
Kf1 {[%emt 0:00:06]} h6 {[%emt 0:00:24]} ({Black should play} 42... Rb5 $19 43.
Rc3 Ne7) 43. Rc3 {[%emt 0:00:00]} (43. Ne5 $17 {was worth a try.} Nxd4 44. Rxa5
) 43... Rb6 $19 {[%emt 0:00:00]} 44. Rc4 {[%emt 0:00:00]} Ke7 {[%emt 0:00:00]}
45. h4 {[%emt 0:00:00]} (45. Nd2 $142) 45... gxh4 {[%emt 0:00:00]} 46. Nxh4 {
[%emt 0:00:00]} Kd6 {[%emt 0:00:00] Weighted Error Value: White=0.21 (precise)
/Black=0.06 (flawless)} 0-1